fUSD/lending_fUSD_20240616
["ID","MTS","AMOUNT","RATE_DAILY","PERIOD"]
[329647129,1718539847580,-500.0,0.00021917,2]
[329647131,1718539847593,-500.0,0.00021917,2]
[329647132,1718539847620,-364.11179511,0.00021917,2]
[329647133,1718539847634,-566.3,0.00021917,2]
[329647134,1718539847648,-500.0,0.00021917,2]
[329647135,1718539847661,-500.0,0.00021917,2]
[329647136,1718539847679,-500.0,0.00021917,2]
[329647137,1718539847702,-500.0,0.00021917,2]
[329647138,1718539847722,-500.0,0.00021917,2]
[329647139,1718539847733,-500.0,0.00021917,2]
[329647140,1718539847748,-500.0,0.00021917,2]
[329647141,1718539847760,-500.0,0.00021917,2]
[329647142,1718539847770,-500.0,0.00021917,2]
[329647143,1718539847780,-500.0,0.00021917,2]
[329647144,1718539847791,-500.0,0.00021917,2]
[329647145,1718539847807,-500.0,0.00021917,2]
[329647146,1718539847853,-500.0,0.00021917,2]
[329647147,1718539847884,-500.0,0.00021917,2]
[329647148,1718539847908,-500.0,0.00021917,2]
[329647149,1718539847940,-500.0,0.00021917,2]
[329647150,1718539847974,-500.0,0.00021917,2]
[329647151,1718539847986,-500.0,0.00021917,2]
[329647152,1718539847998,-500.0,0.00021917,2]
[329647153,1718539848013,-500.0,0.00021917,2]
[329647154,1718539848041,-200.0,0.00021917,2]
[329647155,1718539848073,-525.028199,0.00021917,2]
[329647156,1718539848085,-510.77638243,0.00021917,2]
[329647157,1718539848128,-500.0,0.00021917,2]
[329647158,1718539848144,-555.38,0.00021917,2]
[329647159,1718539848157,-742.91,0.00021917,2]
[329647160,1718539848170,-500.0,0.00021917,2]
[329647161,1718539848184,-500.0,0.00021917,2]
[329647162,1718539848197,-500.0,0.00021917,2]
[329647163,1718539848211,-500.0,0.00021917,2]
[329647164,1718539848230,-520.7940933,0.00021917,2]
[329647165,1718539848240,-578.43,0.00021917,2]
[329647167,1718539848252,-500.0,0.00021917,2]
[329647169,1718539848263,-500.0,0.00021917,2]
[329647171,1718539848283,-500.0,0.00021917,2]
[329647174,1718539848298,-177.94758381,0.00021917,2]
[329647176,1718539848310,-675.22,0.00021917,2]
[329647178,1718539848327,-500.0,0.00021917,2]
[329647180,1718539848344,-500.0,0.00021917,2]
[329647182,1718539848357,-500.0,0.00021917,2]
[329647183,1718539848373,-500.0,0.00021917,2]
[329647184,1718539848417,-500.0,0.00021917,2]
[329647186,1718539848429,-500.0,0.00021917,2]
[329647188,1718539848442,-500.0,0.00021917,2]
[329647190,1718539848455,-500.0,0.00021917,2]
[329647192,1718539848469,-500.0,0.00021917,2]
[329647194,1718539848485,-500.0,0.00021917,2]
[329647196,1718539848501,-500.0,0.00021917,2]
[329647198,1718539848533,-500.0,0.00021917,2]
[329647201,1718539848556,-500.0,0.00021917,2]
[329647203,1718539848570,-500.0,0.00021917,2]
[329647205,1718539848585,-500.0,0.00021917,2]
[329647207,1718539848603,-500.0,0.00021917,2]
[329647208,1718539848619,-551.78,0.00021917,2]
[329647210,1718539848631,-500.0,0.00021917,2]
[329647213,1718539848646,-665.41,0.00021917,2]
[329647217,1718539848693,-184.20121475,0.00021917,2]
[329647219,1718539848713,-500.0,0.00021917,2]
[329647221,1718539848726,-500.0,0.00021917,2]
[329647223,1718539848745,-352.30926822,0.00021917,2]
[329647225,1718539848781,-500.0,0.00021917,2]
[329647228,1718539848798,-500.0,0.00021917,2]
[329647230,1718539848825,-237.48,0.00021917,2]
[329647234,1718539848860,-500.0,0.00021917,2]
[329647236,1718539848883,-500.0,0.00021917,2]
[329647238,1718539848913,-500.0,0.00021917,2]
[329647240,1718539848936,-500.0,0.00021917,2]
[329647242,1718539848971,-155.26772256,0.00021917,2]
[329647244,1718539848993,-500.0,0.00021917,2]
[329647246,1718539849004,-641.97,0.00021917,2]
[329647249,1718539849035,-500.0,0.00021917,2]
[329647250,1718539849049,-500.0,0.00021917,2]
[329647251,1718539849084,-532.37,0.00021917,2]
[329647252,1718539849125,-502.58343942,0.00021917,2]
[329647253,1718539849138,-766.52,0.00021917,2]
[329647254,1718539849153,-500.0,0.00021917,2]
[329647255,1718539849169,-500.0,0.00021917,2]
[329647257,1718539849183,-500.0,0.00021917,2]
[329647259,1718539849205,-699.11,0.00021917,2]
[329647261,1718539849217,-500.0,0.00021917,2]
[329647263,1718539849234,-500.0,0.00021917,2]
[329647265,1718539849245,-500.0,0.00021917,2]
[329647267,1718539849259,-500.0,0.00021917,2]
[329647269,1718539849276,-551.76,0.00021917,2]
[329647272,1718539849325,-607.09,0.00021917,2]
[329647274,1718539849337,-500.0,0.00021917,2]
[329647276,1718539849350,-385.52467978,0.00021917,2]
[329647278,1718539849367,-500.0,0.00021917,2]
[329647281,1718539849393,-2179.14,0.00021917,2]
[329647283,1718539849413,-500.0,0.00021917,2]
[329647285,1718539849430,-500.0,0.00021917,2]
[329647287,1718539849454,-550.01728926,0.00021917,2]
[329647289,1718539849478,-500.0,0.00021917,2]
[329647292,1718539849500,-500.0,0.00021917,2]
[329647293,1718539849520,-500.0,0.00021917,2]
[329647294,1718539849549,-500.0,0.00021917,2]
[329647296,1718539849563,-1636.0,0.00021917,2]
[329647298,1718539849581,-500.0,0.00021917,2]
[329647301,1718539849595,-500.0,0.00021917,2]
[329647303,1718539849606,-500.0,0.00021917,2]
[329647305,1718539849617,-500.0,0.00021917,2]
[329647307,1718539849633,-332.80767725,0.00021917,2]
[329647309,1718539849647,-2160.9,0.00021917,2]
[329647311,1718539849660,-808.84,0.00021917,2]
[329647313,1718539849674,-500.0,0.00021917,2]
[329647315,1718539849687,-500.0,0.00021917,2]
[329647317,1718539849698,-10951.09,0.00021917,2]
[329647319,1718539849724,-500.0,0.00021917,2]
[329647320,1718539849735,-515.34,0.00021917,2]
[329647322,1718539849757,-500.0,0.00021917,2]
[329647324,1718539849772,-5285.3,0.00021917,2]
[329647326,1718539849789,-500.0,0.00021917,2]
[329647327,1718539849823,-500.0,0.00021917,2]
[329647329,1718539849844,-711.51,0.00021917,2]
[329647331,1718539849855,-497.86096703,0.00021917,2]
[329647333,1718539849868,-500.0,0.00021917,2]
[329647335,1718539849883,-2837.33,0.00021917,2]
[329647337,1718539849907,-500.0,0.00021917,2]
[329647338,1718539849921,-500.0,0.00021917,2]
[329647341,1718539849956,-2329.35,0.00021917,2]
[329647343,1718539849991,-571.52,0.00021917,2]
[329647345,1718539850005,-500.0,0.00021917,2]
[329647347,1718539850024,-25289.4,0.00021917,2]
[329647349,1718539850035,-500.0,0.00021917,2]
[329647350,1718539850081,-735.24,0.00021917,2]
[329647353,1718539850102,-500.0,0.00021917,2]
[329647355,1718539850114,-3234.27,0.00021917,2]
[329647357,1718539850125,-500.0,0.00021917,2]
[329647359,1718539850137,-1581.33,0.00021917,2]
[329647361,1718539850153,-500.0,0.00021917,2]
[329647362,1718539850164,-957.39,0.00021917,2]
[329647364,1718539850175,-500.0,0.00021917,2]
[329647366,1718539850188,-1203.84,0.00021917,2]
[329647368,1718539850201,-809.06,0.00021917,2]
[329647370,1718539850212,-618.56814531,0.00021917,2]
[329647372,1718539850224,-500.0,0.00021917,2]
[329647374,1718539850235,-500.0,0.00021917,2]
[329647376,1718539850246,-8083.29,0.00021917,2]
[329647377,1718539850261,-1304.64,0.00021917,2]
[329647379,1718539850292,-1908.08,0.00021917,2]
[329647381,1718539850304,-500.0,0.00021917,2]
[329647383,1718539850323,-500.0,0.00021917,2]
[329647385,1718539850348,-848.21,0.00021917,2]
[329647387,1718539850376,-881.06,0.00021917,2]
[329647389,1718539850432,-500.0,0.00021917,2]
[329647391,1718539850459,-2238.04,0.00021917,2]
[329647394,1718539850488,-500.0,0.00021917,2]
[329647395,1718539850508,-500.0,0.00021917,2]
[329647397,1718539850530,-723.89,0.00021917,2]
[329647399,1718539850546,-535.10171377,0.00021917,2]
[329647401,1718539850567,-500.0,0.00021917,2]
[329647403,1718539850581,-500.0,0.00021917,2]
[329647405,1718539850601,-500.0,0.00021917,2]
[329647407,1718539850613,-500.0,0.00021917,2]
[329647409,1718539850661,-4054.39,0.00021917,2]
[329647411,1718539850717,-1462.86,0.00021917,2]
[329647414,1718539850756,-4706.03,0.00021917,2]
[329647415,1718539850768,-503.88,0.00021917,2]
[329647417,1718539850781,-975.92,0.00021917,2]
[329647420,1718539850801,-1010.04,0.00021917,2]
[329647422,1718539850837,-636.15,0.00021917,2]
[329647425,1718539850861,-500.0,0.00021917,2]
[329647427,1718539850894,-641.97,0.00021917,2]
[329647428,1718539850948,-692.27,0.00021917,2]
[329647431,1718539850974,-500.0,0.00021917,2]
[329647433,1718539851006,-500.0,0.00021917,2]
[329647436,1718539851046,-1001.04,0.00021917,2]
[329647438,1718539851101,-904.36,0.00021917,2]
[329647440,1718539851129,-2331.69,0.00021917,2]
[329647441,1718539851149,-620.65,0.00021917,2]
[329647443,1718539851162,-1361.59,0.00021917,2]
[329647445,1718539851184,-500.0,0.00021917,2]
[329647446,1718539851196,-246.38566249,0.00021917,2]
[329647448,1718539851248,-500.0,0.00021917,2]
[329647450,1718539851273,-1299.17,0.00021917,2]
[329647453,1718539851321,-500.0,0.00021917,2]
[329647455,1718539851337,-500.0,0.00021917,2]
[329647457,1718539851357,-2400.12,0.00021917,2]
[329647459,1718539851379,-855.4,0.00021917,2]
[329647461,1718539851432,-500.0,0.00021917,2]
[329647463,1718539851446,-500.0,0.00021917,2]
[329647465,1718539851461,-500.0,0.00021917,2]
[329647467,1718539851473,-861.66,0.00021917,2]
[329647469,1718539851484,-1266.1,0.00021917,2]
[329647471,1718539851496,-500.0,0.00021917,2]
[329647473,1718539851507,-500.0,0.00021917,2]
[329647475,1718539851519,-847.9,0.00021917,2]
[329647477,1718539851548,-664.62,0.00021917,2]
[329647479,1718539851561,-626.93,0.00021917,2]
[329647481,1718539851588,-641.38,0.00021917,2]
[329647483,1718539851599,-500.0,0.00021917,2]
[329647485,1718539851638,-500.0,0.00021917,2]
[329647487,1718539851649,-853.93,0.00021917,2]
[329647489,1718539851684,-2190.06,0.00021917,2]
[329647491,1718539851708,-500.0,0.00021917,2]
[329647493,1718539851726,-1023.73,0.00021917,2]
[329647494,1718539851744,-500.0,0.00021917,2]
[329647495,1718539851755,-500.0,0.00021917,2]
[329647496,1718539851766,-809.18,0.00021917,2]
[329647497,1718539851779,-500.0,0.00021917,2]
[329647498,1718539851793,-580.74,0.00021917,2]
[329647499,1718539851815,-1572.4,0.00021917,2]
[329647500,1718539851830,-1503.67,0.00021917,2]
[329647501,1718539851871,-500.0,0.00021917,2]
[329647502,1718539851888,-2855.25,0.00021917,2]
[329647503,1718539851906,-982.75,0.00021917,2]
[329647504,1718539851917,-2874.24,0.00021917,2]
[329647505,1718539851934,-500.0,0.00021917,2]
[329647506,1718539851945,-500.0,0.00021917,2]
[329647507,1718539851960,-911.94,0.00021917,2]
[329647508,1718539851973,-500.0,0.00021917,2]
[329647509,1718539852004,-1353.92,0.00021917,2]
[329647510,1718539852040,-839.82,0.00021917,2]
[329647511,1718539852052,-1033.89,0.00021917,2]
[329647512,1718539852076,-510.22265897,0.00021917,2]
[329647513,1718539852088,-744.48,0.00021917,2]
[329647514,1718539852116,-500.0,0.00021917,2]
[329647515,1718539852130,-723.27,0.00021917,2]
[329647517,1718539852145,-1612.21,0.00021917,2]
[329647519,1718539852156,-1597.64,0.00021917,2]
[329647521,1718539852168,-500.0,0.00021917,2]
[329647523,1718539852180,-500.0,0.00021917,2]
[329647525,1718539852232,-893.14,0.00021917,2]
[329647527,1718539852264,-1723.62,0.00021917,2]
[329647529,1718539852300,-913.05,0.00021917,2]
[329647530,1718539852324,-658.99,0.00021917,2]
[329647532,1718539852357,-500.0,0.00021917,2]
[329647533,1718539852376,-1034.26,0.00021917,2]
[329647534,1718539852392,-892.41,0.00021917,2]
[329647535,1718539852403,-500.0392481,0.00021917,2]
[329647536,1718539852416,-500.0,0.00021917,2]
[329647537,1718539852428,-500.0,0.00021917,2]
[329647538,1718539852440,-866.84,0.00021917,2]
[329647539,1718539852451,-500.0,0.00021917,2]
[329647540,1718539852485,-520.18531345,0.00021917,2]
[329647541,1718539852497,-812.21,0.00021917,2]
[329647542,1718539852516,-508.26,0.00021917,2]
[329647543,1718539852530,-500.0,0.00021917,2]
[329647544,1718539852573,-500.0,0.00021917,2]
[329647545,1718539852605,-609.28208232,0.00021917,2]
[329647546,1718539852672,-500.0,0.00021917,2]
[329647547,1718539852709,-1406.79,0.00021917,2]
[329647548,1718539852737,-500.0,0.00021917,2]
[329647549,1718539852780,-500.0,0.00021917,2]
[329647550,1718539852840,-185.44,0.00021918,2]
[329647551,1718539852852,-250.0,0.00021918,2]
[329647552,1718539852863,-500.69,0.00021918,2]
[329647553,1718539852877,-3680.169,0.00021927,2]
[329647554,1718539852897,-221.00503332,0.00022,2]
[329647555,1718539852918,-221.00503332,0.00022,2]
[329647556,1718539852931,-221.00503332,0.00022,2]
[329647557,1718539852944,-221.00503332,0.00022,2]
[329647558,1718539852956,-221.00503332,0.00022,2]
[329647559,1718539852970,-221.00503332,0.00022,2]
[329647560,1718539852992,-221.00503332,0.00022,2]
[329647561,1718539853003,-221.00503332,0.00022,2]
[329647562,1718539853024,-221.00503332,0.00022,2]
[329647563,1718539853051,-221.00503332,0.00022,2]
[329647564,1718539853081,-221.00503332,0.00022,2]
[329647565,1718539853092,-221.00503332,0.00022,2]
[329647566,1718539853132,-221.00503332,0.00022,2]
[329647567,1718539853149,-221.00503332,0.00022,2]
[329647568,1718539853176,-221.00503332,0.00022,2]
[329647569,1718539853200,-221.00503332,0.00022,2]
[329647570,1718539853213,-221.00503332,0.00022,2]
[329647571,1718539853227,-221.00503332,0.00022,2]
[329647572,1718539853239,-221.00503332,0.00022,2]
[329647573,1718539853250,-221.00503332,0.00022,2]
[329647574,1718539853261,-221.00503332,0.00022,2]
[329647575,1718539853272,-221.00503332,0.00022,2]
[329647576,1718539853284,-221.00503332,0.00022,2]
[329647577,1718539853297,-221.00503332,0.00022,2]
[329647578,1718539853310,-221.00503332,0.00022,2]
[329647579,1718539853321,-221.00503332,0.00022,2]
[329647580,1718539853336,-221.00503332,0.00022,2]
[329647581,1718539853380,-221.00503332,0.00022,2]
[329647582,1718539853424,-221.00503332,0.00022,2]
[329647583,1718539853438,-221.00503332,0.00022,2]
[329647584,1718539853468,-221.00503332,0.00022,2]
[329647585,1718539853480,-221.00503332,0.00022,2]
[329647586,1718539853491,-221.00503332,0.00022,2]
[329647587,1718539853504,-221.00503332,0.00022,2]
[329647588,1718539853521,-221.00503332,0.00022,2]
[329647589,1718539853534,-221.00503332,0.00022,2]
[329647590,1718539853549,-221.00503332,0.00022,2]
[329647591,1718539853564,-221.00503332,0.00022,2]
[329647592,1718539853580,-221.00503332,0.00022,2]
[329647593,1718539853594,-221.00503332,0.00022,2]
[329647594,1718539853605,-221.00503332,0.00022,2]
[329647595,1718539853619,-221.00503332,0.00022,2]
[329647596,1718539853637,-221.00503332,0.00022,2]
[329647597,1718539853657,-221.00503332,0.00022,2]
[329647598,1718539853678,-221.00503332,0.00022,2]
[329647599,1718539853704,-221.00503332,0.00022,2]
[329647600,1718539853877,-221.00503332,0.00022,2]
[329647601,1718539853913,-221.00503332,0.00022,2]
[329647602,1718539853951,-221.00503332,0.00022,2]
[329647603,1718539853973,-221.00503332,0.00022,2]
[329647604,1718539853990,-221.00503332,0.00022,2]
[329647605,1718539854003,-221.00503332,0.00022,2]
[329647606,1718539854020,-221.00503332,0.00022,2]
[329647607,1718539854048,-221.00503332,0.00022,2]
[329647608,1718539854061,-258.12664717,0.00022091,2]
[329647609,1718539854072,-500.0,0.00022128,2]
[329647610,1718539854092,-1500.0,0.00022128,2]
[329647611,1718539854112,-155.0,0.00022189,2]
[329647612,1718539854123,-400.0,0.00022189,2]
[329647613,1718539854135,-193.21503737,0.00022189,2]
[329647614,1718539854148,-263.84998264,0.00022189,2]
[329647615,1718539854160,-155.0,0.00022189,2]
[329647616,1718539854172,-181.46353453,0.00022189,2]
[329647617,1718539854188,-217.44360157,0.00022189,2]
[329647618,1718539854200,-490.2568696,0.00022189,2]
[329647619,1718539854225,-361.69947237,0.00022189,5]
[329647620,1718539854253,-156.78906714,0.0002219,2]
[329647621,1718539854275,-307.45960582,0.0002219,2]
[329647622,1718539854289,-991.08,0.0002219,3]
[329647623,1718539854316,-1636.78,0.0002219,3]
[329647624,1718539854333,-1012.56,0.0002219,3]
[329647625,1718539854360,-4319.08,0.0002219,3]
[329647626,1718539854400,-1061.44,0.0002219,3]
[329647627,1718539854412,-3420.99,0.0002219,3]
[329647628,1718539854425,-500.0,0.0002219,3]
[329647629,1718539854437,-1670.98,0.0002219,3]
[329647630,1718539854470,-2617.36,0.0002219,3]
[329647631,1718539854505,-1369.89,0.0002219,3]
[329647632,1718539854518,-1804.24,0.0002219,3]
[329647633,1718539854533,-668.31,0.0002219,3]
[329647634,1718539854592,-2496.72,0.0002219,3]
[329647635,1718539854622,-500.0,0.0002219,3]
[329647636,1718539854635,-500.0,0.0002219,3]
[329647637,1718539854670,-500.0,0.0002219,3]
[329647638,1718539854692,-500.0,0.0002219,3]
[329647639,1718539854704,-1437.15,0.0002219,3]
[329647640,1718539854716,-940.06,0.0002219,3]
[329647641,1718539854730,-500.0,0.0002219,3]
[329647642,1718539854758,-713.88,0.0002219,3]
[329647643,1718539854772,-696.07,0.0002219,3]
[329647644,1718539854785,-1350.0,0.0002219,3]
[329647645,1718539854802,-654.57,0.0002219,3]
[329647646,1718539854825,-500.0,0.00022191,3]
[329647647,1718539854852,-500.0,0.00022191,3]
[329647648,1718539854908,-601.69,0.00022191,3]
[329647649,1718539854934,-500.0,0.00022191,3]
[329647650,1718539854969,-500.0,0.00022191,3]
[329647651,1718539855014,-500.0,0.00022191,3]
[329647652,1718539855026,-500.0,0.00022191,3]
[329647653,1718539855054,-500.0,0.00022191,3]
[329647654,1718539855084,-500.0,0.00022191,3]
[329647655,1718539855102,-500.0,0.00022191,3]
[329647656,1718539855113,-500.0,0.00022191,3]
[329647657,1718539855125,-500.0,0.00022191,3]
[329647658,1718539855137,-238.14435082,0.00022191,3]
[329647659,1718539855148,-500.0,0.00022191,3]
[329647660,1718539855166,-500.0,0.00022191,3]
[329647661,1718539855177,-500.0,0.00022191,3]
[329647662,1718539855191,-500.0,0.00022191,3]
[329647663,1718539855213,-570.13328872,0.00022191,3]
[329647664,1718539855236,-500.0,0.00022191,3]
[329647665,1718539855248,-500.0,0.00022191,3]
[329647666,1718539855277,-500.0,0.00022191,3]
[329647667,1718539855291,-500.0,0.00022191,2]
[329647668,1718539855306,-500.0,0.00022191,3]
[329647669,1718539855325,-500.0,0.00022191,3]
[329647670,1718539855363,-500.0,0.00022191,3]
[329647671,1718539855394,-189.92197162,0.00022191,3]
[329647672,1718539855407,-570.9243852,0.00022191,3]
[329647673,1718539855421,-500.0,0.00022191,3]
[329647674,1718539855457,-341.97,0.00022191,3]
[329647675,1718539855523,-500.0,0.00022191,3]
[329647676,1718539855535,-500.0,0.00022191,3]
[329647677,1718539855547,-500.0,0.00022191,3]
[329647678,1718539855558,-500.0,0.00022191,3]
[329647679,1718539855589,-500.0,0.00022191,3]
[329647680,1718539855600,-500.0,0.00022191,3]
[329647681,1718539855612,-670.97,0.00022191,3]
[329647682,1718539855656,-500.0,0.00022191,3]
[329647683,1718539855683,-500.0,0.00022191,3]
[329647684,1718539855700,-290.38,0.00022191,3]
[329647685,1718539855712,-487.99863564,0.00022191,3]
[329647686,1718539855743,-461.22829123,0.00022191,3]
[329647687,1718539855755,-500.0,0.00022191,3]
[329647688,1718539855770,-500.0,0.00022191,3]
[329647689,1718539855791,-500.0,0.00022191,3]
[329647690,1718539855820,-500.0,0.00022191,3]
[329647691,1718539855844,-677.47,0.00022191,3]
[329647692,1718539855857,-500.0,0.00022191,3]
[329647693,1718539855891,-500.0,0.00022191,3]
[329647694,1718539855917,-500.0,0.00022191,3]
[329647695,1718539855932,-500.0,0.00022191,3]
[329647696,1718539855956,-500.0,0.00022191,3]
[329647697,1718539855980,-500.0,0.00022191,3]
[329647698,1718539855993,-500.0,0.00022191,3]
[329647699,1718539856008,-500.0,0.00022191,3]
[329647700,1718539856023,-384.12379526,0.00022191,3]
[329647701,1718539856069,-500.0,0.00022191,3]
[329647702,1718539856112,-500.0,0.00022191,3]
[329647703,1718539856125,-500.0,0.00022191,3]
[329647704,1718539856161,-566.3,0.00022191,3]
[329647705,1718539856184,-500.0,0.00022191,3]
[329647706,1718539856205,-164.58165753,0.00022191,3]
[329647707,1718539856216,-500.0,0.00022191,3]
[329647708,1718539856229,-500.0,0.00022191,3]
[329647709,1718539856241,-500.0,0.00022191,3]
[329647710,1718539856252,-500.0,0.00022191,3]
[329647711,1718539856264,-500.0,0.00022191,3]
[329647712,1718539856282,-500.0,0.00022191,3]
[329647713,1718539856319,-500.0,0.00022191,3]
[329647714,1718539856374,-500.0,0.00022191,3]
[329647715,1718539856401,-500.0,0.00022191,3]
[329647716,1718539856421,-547.18925619,0.00022191,3]
[329647717,1718539856460,-500.0,0.00022191,3]
[329647718,1718539856489,-500.0,0.00022191,3]
[329647719,1718539856516,-500.0,0.00022191,3]
[329647720,1718539856528,-500.0,0.00022191,3]
[329647721,1718539856539,-500.0,0.00022191,3]
[329647722,1718539856562,-500.0,0.00022191,3]
[329647723,1718539856573,-200.0,0.00022191,3]
[329647724,1718539856596,-500.0,0.00022191,3]
[329647725,1718539856647,-555.38,0.00022191,3]
[329647726,1718539856672,-742.91,0.00022191,3]
[329647727,1718539856692,-500.0,0.00022191,3]
[329647728,1718539856703,-500.0,0.00022191,3]
[329647729,1718539856715,-500.0,0.00022191,3]
[329647730,1718539856747,-500.0,0.00022191,3]
[329647731,1718539856758,-578.43,0.00022191,3]
[329647732,1718539856783,-500.0,0.00022191,3]
[329647733,1718539856807,-500.0,0.00022191,3]
[329647734,1718539856831,-501.70996429,0.00022191,3]
[329647735,1718539856844,-675.22,0.00022191,3]
[329647736,1718539856863,-500.0,0.00022191,3]
[329647737,1718539856881,-500.0,0.00022191,3]
[329647738,1718539856900,-500.0,0.00022191,3]
[329647739,1718539856911,-500.0,0.00022191,3]
[329647740,1718539856966,-500.0,0.00022191,3]
[329647741,1718539856996,-500.0,0.00022191,3]
[329647742,1718539857011,-500.0,0.00022191,3]
[329647743,1718539857024,-500.0,0.00022191,3]
[329647744,1718539857048,-500.0,0.00022191,3]
[329647745,1718539857068,-500.0,0.00022191,3]
[329647746,1718539857081,-500.0,0.00022191,3]
[329647747,1718539857097,-500.0,0.00022191,3]
[329647748,1718539857115,-500.0,0.00022191,3]
[329647749,1718539857144,-500.0,0.00022191,3]
[329647750,1718539857171,-500.0,0.00022191,3]
[329647751,1718539857187,-182.78680177,0.00022191,3]
[329647752,1718539857216,-551.78,0.00022191,3]
[329647753,1718539857231,-500.0,0.00022191,3]
[329647754,1718539857244,-665.41,0.00022191,3]
[329647755,1718539857283,-500.0,0.00022191,3]
[329647756,1718539857323,-500.0,0.00022191,3]
[329647757,1718539857349,-500.0,0.00022191,3]
[329647758,1718539857360,-500.0,0.00022191,3]
[329647759,1718539857371,-237.48,0.00022191,3]
[329647760,1718539857382,-500.0,0.00022191,3]
[329647761,1718539857394,-500.0,0.00022191,3]
[329647762,1718539857405,-500.0,0.00022191,3]
[329647763,1718539857428,-500.0,0.00022191,3]
[329647764,1718539857448,-500.0,0.00022191,3]
[329647765,1718539857460,-641.97,0.00022191,3]
[329647766,1718539857470,-500.0,0.00022191,3]
[329647767,1718539857495,-500.0,0.00022191,3]
[329647768,1718539857513,-532.37,0.00022191,3]
[329647769,1718539857536,-766.52,0.00022191,3]
[329647770,1718539857549,-500.0,0.00022191,3]
[329647771,1718539857563,-500.0,0.00022191,3]
[329647772,1718539857576,-500.0,0.00022191,3]
[329647773,1718539857604,-699.11,0.00022191,3]
[329647774,1718539857636,-500.0,0.00022191,3]
[329647775,1718539857665,-500.0,0.00022191,3]
[329647776,1718539857681,-500.0,0.00022191,3]
[329647777,1718539857711,-500.0,0.00022191,3]
[329647778,1718539857721,-551.76,0.00022191,3]
[329647779,1718539857735,-607.09,0.00022191,3]
[329647780,1718539857758,-500.0,0.00022191,3]
[329647781,1718539857771,-614.10681527,0.00022191,3]
[329647782,1718539857797,-2179.14,0.00022191,3]
[329647783,1718539857810,-500.0,0.00022191,3]
[329647784,1718539857857,-500.0,0.00022191,3]
[329647785,1718539857876,-500.0,0.00022191,3]
[329647786,1718539857887,-500.0,0.00022191,3]
[329647787,1718539857900,-500.0,0.00022191,3]
[329647788,1718539857911,-1636.0,0.00022191,3]
[329647789,1718539857923,-500.0,0.00022191,3]
[329647790,1718539857936,-500.0,0.00022191,3]
[329647791,1718539857947,-500.0,0.00022191,3]
[329647792,1718539857960,-2160.9,0.00022191,3]
[329647793,1718539857980,-808.84,0.00022191,3]
[329647794,1718539857996,-500.0,0.00022191,3]
[329647795,1718539858012,-500.0,0.00022191,3]
[329647796,1718539858027,-10951.09,0.00022191,3]
[329647797,1718539858039,-500.0,0.00022191,3]
[329647798,1718539858052,-500.0,0.00022191,3]
[329647799,1718539858063,-5285.3,0.00022191,3]
[329647800,1718539858076,-500.0,0.00022191,3]
[329647801,1718539858088,-392.4873835,0.00022191,3]